bitfinex-derivatives/quotes_ETHF0:USTF0_20250102
["timestamp","ask_amount","ask_price","bid_price","bid_amount"]
[1735813965799,0.9168,3470.4,3469.9,3.2078]
[1735813965998,0.28847,3470.6,3470.4,0.28848]
[1735813967697,0.28847,3470.5,3470.4,0.28848]
[1735813967897,0.28847,3470.5,3470.3,0.28849]
[1735813968102,0.28848,3470.4,3470.3,0.28849]
[1735813968301,0.28848,3470.4,3470.0,0.889]
[1735813968501,0.28848,3470.4,3470.2,0.28849]
[1735813968803,0.28851,3470.1,3470.0,0.4262]
[1735813969805,0.28851,3470.0,3469.9,3.2078]
[1735813972504,0.28854,3469.7,3469.6,0.4256]
[1735813973491,0.95185314,3470.1,3469.6,0.4256]
[1735813973696,0.4547,3470.1,3469.6,0.4256]
[1735813974002,0.28854,3469.7,3469.6,0.4256]
[1735813974195,0.95185314,3470.1,3469.5,3.2078]
[1735813974395,0.28855,3469.6,3469.5,3.2078]
[1735813974603,0.95185314,3470.1,3469.5,3.2078]
[1735813974798,0.4547,3470.1,3469.5,3.2078]
[1735813975004,0.28855,3469.6,3469.5,3.2078]
[1735813976197,0.28853,3469.8,3469.6,0.28855]
[1735813976406,0.28852,3470.0,3469.5,3.2078]
[1735813976705,1.38235314,3470.1,3469.6,0.4177]
[1735813976908,0.28852,3470.0,3469.9,0.28852]
[1735813977109,0.28851,3470.0,3469.9,0.28852]
[1735813977499,0.8852,3470.1,3469.6,0.4177]
[1735813977701,0.28851,3470.1,3470.0,0.28851]
[1735813978207,0.4364,3470.2,3469.6,0.4177]
[1735813978408,0.28852,3470.0,3469.9,0.28852]
[1735813978701,0.28855,3469.6,3469.5,3.2078]
[1735813978904,2.97331611,3470.2,3469.5,3.2078]
[1735813979110,2.47612806,3470.2,3469.7,0.28853]
[1735813979504,0.28853,3469.9,3469.7,0.28853]
[1735813979807,0.28853,3469.9,3469.8,0.28853]
[1735813980402,2.97331611,3470.2,3469.8,0.28853]
[1735813980602,0.28854,3469.7,3469.6,0.28855]
[1735813981004,2.97331611,3470.2,3469.5,3.2078]
[1735813981201,0.28853,3469.8,3469.7,0.28854]
[1735813981803,0.28853,3469.9,3469.8,0.28853]
[1735813981999,0.91948805,3470.1,3469.6,0.419]
[1735813982204,0.4223,3470.1,3469.6,0.419]
[1735813982410,0.28852,3470.0,3469.9,0.28852]
[1735813982609,0.4223,3470.1,3469.6,0.8648]
[1735813982910,0.71081,3470.1,3470.0,0.28851]
[1735813983105,0.71081,3470.1,3469.7,0.28854]
[1735813983106,0.28852,3469.9,3469.7,0.28854]
[1735813983304,0.28852,3469.9,3469.8,0.28853]
[1735813984811,0.91947178,3470.1,3469.6,0.8648]
[1735813985114,0.93357178,3470.2,3470.1,0.28851]
[1735813985315,0.49717178,3470.3,3470.2,0.2885]
[1735813985519,3.2078,3470.4,3470.3,0.28849]
[1735813986607,0.28849,3470.3,3470.1,0.2885]
[1735813986803,3.49629,3470.4,3470.1,0.2885]
[1735813987008,3.49629,3470.4,3470.2,0.2885]
[1735813987210,3.2078,3470.4,3469.9,3.5469]
[1735813987411,0.28851,3470.1,3469.9,3.49632]
[1735813987613,0.4179,3470.0,3469.9,3.2078]
[1735813988010,1.35764828,3470.3,3469.9,3.2078]
[1735813988311,0.2885,3470.2,3470.0,0.28851]
[1735813988713,1.35764828,3470.3,3469.9,7.66933915]
[1735813988914,0.2885,3470.2,3469.9,7.66933915]
[1735813989114,0.2885,3470.2,3470.0,0.28851]
[1735813989306,0.2885,3470.2,3469.9,7.66933915]
[1735813989617,0.28851,3470.1,3469.9,7.95785915]
[1735813989810,0.2885,3470.2,3470.0,0.28851]
[1735813990316,1.35764828,3470.3,3469.9,7.66933915]
[1735813990516,0.28851,3470.1,3469.9,7.95785915]
[1735813990905,0.28851,3470.1,3470.0,0.28851]
[1735813991307,0.28851,3470.1,3469.9,7.95785915]
[1735813991719,1.35804859,3470.3,3469.9,7.66933915]
[1735813992016,0.2885,3470.2,3469.9,7.66933915]
[1735813992214,0.8604,3470.3,3469.9,7.66933915]
[1735813992412,3.67923715,3470.2,3469.9,3.2078]
[1735813992820,0.28851,3470.1,3470.0,0.28851]
[1735813993026,3.39073715,3470.2,3470.1,0.28851]
[1735813993617,3.39073715,3470.2,3470.1,2.32823806]
[1735813994219,3.39073715,3470.2,3470.1,0.28851]
[1735813994519,4.51620206,3470.4,3469.9,3.2078]
[1735813994715,0.28849,3470.3,3470.1,0.2885]
[1735813995015,0.2885,3470.2,3470.0,0.28851]
[1735813995621,0.7253,3470.2,3470.0,0.28851]
[1735813995814,0.4368,3470.2,3469.9,3.2078]
[1735813996118,4.26823715,3470.3,3470.2,0.2885]
[1735813996322,4.26823715,3470.3,3470.1,0.2885]
[1735813996716,4.26823715,3470.3,3470.0,0.28851]
[1735813996717,0.2885,3470.2,3470.0,0.28851]
[1735813997120,0.2885,3470.2,3469.9,3.49631]
[1735813997321,0.2885,3470.2,3470.0,0.28851]
[1735813997721,1.166,3470.3,3470.1,0.2885]
[1735813997926,0.8775,3470.3,3470.2,0.2885]
[1735813998225,4.26823715,3470.3,3470.2,0.2885]
[1735813998416,0.2885,3470.2,3470.1,0.2885]
[1735813998716,4.26823715,3470.3,3469.9,3.2078]
[1735813998717,0.28851,3470.1,3469.9,3.49632]
[1735813998919,0.28851,3470.0,3469.9,3.2078]
[1735813999118,0.71681,3470.0,3469.9,3.2078]
[1735813999916,0.4283,3470.0,3469.9,3.2078]
[1735814000221,0.4283,3470.0,3469.9,3.49632]
[1735814000722,0.4283,3470.0,3469.9,3.2078]
[1735814001023,0.4283,3470.0,3469.9,3.49632]
[1735814001222,0.71681,3470.0,3469.9,3.2078]
[1735814003018,0.4283,3470.0,3469.9,3.49632]
[1735814003621,0.71681,3470.0,3469.9,3.2078]
[1735814004124,0.4283,3470.0,3469.9,3.2078]
[1735814004421,0.4283,3470.0,3469.9,3.49632]
[1735814005118,0.4283,3470.0,3469.9,3.2078]
[1735814005320,0.4283,3470.0,3469.9,3.49632]
[1735814005826,0.4283,3470.0,3469.9,3.2078]
[1735814006320,0.4283,3470.0,3469.9,3.49632]
[1735814007123,0.4283,3470.0,3469.9,3.2078]
[1735814007326,0.71681,3470.0,3469.9,3.2078]
[1735814007527,4.10754715,3470.0,3469.9,3.2078]
[1735814007732,4.31669805,3470.0,3469.9,3.49632]
[1735814011127,4.60520805,3470.0,3469.9,3.2078]
[1735814011324,4.31669805,3470.0,3469.9,3.49632]
[1735814011525,4.60520805,3470.0,3469.9,3.2078]
[1735814012225,4.31669805,3470.0,3469.6,0.419]
[1735814012437,0.4976609,3469.9,3469.6,0.70754]
[1735814012731,0.28854,3469.7,3469.6,0.70754]
[1735814012932,0.4976609,3469.9,3469.7,0.28854]
[1735814013232,0.9259609,3470.0,3469.6,0.419]
[1735814013428,0.28854,3469.7,3469.5,0.28856]
[1735814013629,1.17445,3469.6,3469.4,3.49636]
[1735814013827,1.17445,3469.6,3469.5,0.28856]
[1735814013828,0.8859,3469.6,3469.5,0.28856]
[1735814014335,0.8859,3469.6,3469.5,4.75009915]
[1735814015434,0.28853,3469.9,3469.5,4.46153915]
[1735814015627,1.8118609,3470.0,3469.9,0.28852]
[1735814015832,1.3142,3470.0,3469.9,0.28852]
[1735814016039,3.2078,3470.1,3470.0,0.28851]
[1735814016231,3.7058289,3470.1,3470.0,0.28851]
[1735814016730,3.9943389,3470.1,3470.0,0.28851]
[1735814016931,3.7058289,3470.1,3470.0,0.28851]
[1735814018926,3.40346317,3470.4,3470.3,0.28849]
[1735814019236,3.40346317,3470.4,3470.3,5.53601806]
[1735814019628,2.10936316,3470.4,3470.3,10.53601806]
[1735814019828,1.75456316,3470.4,3470.3,10.53601806]
[1735814020232,4.93850206,3471.3,3470.3,22.59886433]
[1735814020435,4.93850206,3471.3,3471.2,0.28842]
[1735814020936,4.93850206,3471.3,3471.0,2.03972806]
[1735814021134,4.93850206,3471.3,3470.9,0.28844]
[1735814021440,0.7856566,3471.2,3471.0,0.28843]
[1735814021638,0.7856566,3471.2,3470.8,3.2078]
[1735814021639,0.4972366,3471.2,3470.8,3.2078]
[1735814021938,4.93850206,3471.3,3470.8,3.2078]
[1735814022328,4.93850206,3471.3,3471.1,0.28842]
[1735814022533,0.4223,3471.3,3470.8,3.2078]
[1735814022838,0.4223,3471.3,3471.2,0.28842]
[1735814022839,0.91928124,3471.3,3471.2,0.28842]
[1735814023234,0.4223,3471.3,3471.2,0.28842]
[1735814023733,0.71071,3471.3,3471.1,0.28842]
[1735814023935,0.4223,3471.3,3471.2,0.28842]
[1735814024133,0.49647235,3471.5,3471.0,2.03972806]
[1735814024340,7.72400206,3471.6,3471.5,0.28839]
[1735814024532,4.51620206,3471.6,3471.5,0.28839]
[1735814025042,4.51620206,3471.7,3471.6,0.28838]
[1735814025247,4.51620206,3471.7,3471.6,7.32810806]
[1735814026041,4.17690206,3471.7,3471.6,7.32810806]
[1735814026240,0.4337,3472.6,3471.6,7.03972806]
[1735814026541,0.4337,3472.6,3472.5,3.49611]
[1735814028544,0.4337,3472.6,3472.5,3.2078]
[1735814028850,0.4337,3472.6,3472.5,3.49613]
[1735814030946,0.4337,3472.6,3472.5,3.2078]
[1735814031145,0.4337,3472.6,3472.5,3.49613]
[1735814031340,0.4337,3472.6,3472.5,3.2078]
[1735814032249,3.2078,3474.0,3473.7,0.28823]
[1735814032443,0.4531,3473.7,3473.6,0.28824]
[1735814032646,3.2078,3474.0,3473.9,0.28821]
[1735814032948,6.6963874,3474.1,3473.9,0.28821]
[1735814033345,0.4251,3474.2,3473.9,0.28821]
[1735814033545,3.2078,3474.4,3474.1,2.03972806]
[1735814033844,3.2078,3474.8,3474.1,2.03972806]
[1735814034049,3.2078,3474.8,3474.4,2.03972806]
[1735814034247,4.3741,3475.3,3474.8,0.28813]
[1735814034548,0.28811,3475.2,3474.7,0.28815]
[1735814034741,0.28812,3475.1,3474.6,0.28816]
[1735814035145,0.28811,3475.2,3474.4,5.24752806]
[1735814035346,4.086,3475.3,3474.4,5.24752806]
[1735814035545,0.28811,3475.2,3474.4,5.24752806]
[1735814035742,0.28811,3475.2,3474.7,0.28814]
[1735814035936,0.28811,3475.2,3474.4,5.24752806]
[1735814036139,0.00172091,3475.1,3474.8,0.28813]
[1735814036338,0.00172091,3475.1,3474.4,5.24752806]
[1735814036545,0.00172091,3475.1,3474.8,0.28814]
[1735814038058,0.00172091,3475.1,3474.9,0.28813]
[1735814039345,0.00172091,3475.1,3475.0,0.28812]
[1735814041847,0.00172091,3475.1,3475.0,2.32784806]
[1735814042552,0.00172091,3475.1,3475.0,3.49184806]
[1735814042845,0.00172091,3475.1,3475.0,44.29184806]
[1735814043056,9.1e-07,3475.1,3475.0,49.29184806]
[1735814044053,0.4587,3476.5,3476.3,0.28801]
[1735814044254,0.4492,3476.8,3476.1,3.2078]
[1735814044452,0.4492,3476.8,3476.6,0.28798]
[1735814045243,0.4492,3476.8,3475.7,1.88415]
[1735814045244,0.288,3476.5,3475.9,0.28804]
[1735814045444,0.28801,3476.4,3475.9,0.28804]
[1735814045656,3.4958,3476.5,3475.7,44.0078]
[1735814045852,3.4958,3476.5,3475.8,2.03972806]
[1735814046053,3.2078,3476.5,3475.7,44.0078]
[1735814046243,3.2078,3476.5,3475.7,5.24752806]
[1735814046551,0.73717,3476.8,3476.3,0.28801]
[1735814046758,0.28799,3476.6,3476.1,3.49583]
[1735814047061,0.288,3476.5,3476.1,3.2078]
[1735814047251,0.28801,3476.4,3475.7,5.24752806]
[1735814047454,0.73451,3476.4,3476.0,0.28803]
[1735814047649,0.28802,3476.3,3475.9,0.28804]
[1735814047953,0.28802,3476.3,3475.7,5.24752806]
[1735814047954,0.4465,3476.4,3475.7,5.24752806]
[1735814048155,0.28802,3476.3,3475.7,5.24752806]
[1735814048359,0.28802,3476.3,3475.9,0.28805]
[1735814048542,0.28807,3475.7,3475.2,0.2881]
[1735814048950,0.4618,3475.6,3475.2,0.2881]
[1735814049254,0.4618,3475.6,3475.3,0.28809]
[1735814049559,0.4618,3475.6,3475.5,0.28808]
[1735814049748,0.4618,3475.6,3475.4,0.28808]
[1735814050050,3.2078,3476.5,3475.5,2.03972806]
[1735814050257,0.4448,3476.2,3476.1,0.28803]
[1735814050455,0.4448,3476.2,3475.8,2.03972806]
[1735814050952,0.4448,3476.2,3475.8,0.28806]
[1735814051349,0.4448,3476.2,3476.0,0.28804]
[1735814051549,0.4448,3476.2,3475.7,3.2078]
[1735814051850,0.4448,3476.2,3475.9,0.28804]
[1735814052853,0.4448,3476.2,3476.0,0.28804]
[1735814053061,0.4448,3476.2,3475.7,3.2078]
[1735814053445,0.4448,3476.2,3476.0,0.28804]
[1735814053752,0.4448,3476.2,3476.1,2.32775806]
[1735814053955,0.4448,3476.2,3476.1,0.28803]
[1735814054750,0.4448,3476.2,3476.1,2.32775806]
[1735814054952,0.4465,3476.4,3476.1,2.03972806]
[1735814055152,0.4465,3476.4,3476.2,0.28801]
[1735814055558,0.4465,3476.4,3476.1,0.28803]
[1735814056353,0.4465,3476.4,3475.8,3.20372806]
[1735814056554,0.4465,3476.4,3476.3,0.28801]
[1735814057653,0.452,3476.8,3476.3,0.28801]
[1735814057654,3.2078,3477.5,3476.3,5.0]
[1735814057850,0.44475,3477.4,3477.1,2.03972806]
[1735814058058,0.44475,3477.4,3477.1,0.28795]
[1735814058760,0.44475,3477.4,3477.1,0.28794]
[1735814059258,0.44475,3477.4,3477.2,0.28794]
[1735814059462,0.44475,3477.4,3477.1,0.28794]
[1735814060261,0.28794,3477.2,3476.6,3.49579]
[1735814060457,0.28796,3477.0,3476.6,3.2078]
[1735814060962,0.28796,3477.0,3476.5,0.28799]
[1735814061153,3.2078,3477.1,3476.5,0.28799]
[1735814061355,3.2078,3477.1,3476.3,0.0008]
[1735814061555,0.28796,3476.9,3476.5,0.28799]
[1735814061756,0.28798,3476.7,3476.3,0.28881]
[1735814061956,2.53311183,3477.0,3476.3,0.0008]
[1735814062155,0.28797,3476.8,3476.4,0.288]
[1735814062363,0.4416,3476.7,3476.4,0.288]
[1735814062560,0.9044,3476.7,3476.4,0.288]
[1735814063457,0.78134377,3477.0,3476.6,0.28798]
[1735814063662,1.39778377,3477.0,3476.4,2.03972806]
[1735814064061,1.68574377,3477.0,3476.6,0.28799]
[1735814064358,1.39778377,3477.0,3476.3,0.0008]
[1735814064563,1.39778377,3477.0,3476.8,0.28797]
[1735814065158,1.39778377,3477.0,3476.6,3.2078]
[1735814065658,1.39855344,3477.0,3476.9,0.28796]
[1735814065858,1.39855344,3477.0,3476.6,3.2078]
[1735814066053,1.39855344,3477.0,3476.8,0.28797]
[1735814066965,0.9044,3477.0,3476.8,0.28797]
[1735814067558,0.9044,3477.0,3476.6,3.2078]
[1735814067761,0.9044,3477.0,3476.7,0.28798]
[1735814068268,0.9044,3477.0,3476.7,0.28797]
[1735814068461,1.19236,3477.0,3476.7,0.28797]
[1735814069665,0.4201,3476.9,3476.7,0.28797]
[1735814071268,0.4201,3476.9,3476.8,0.28797]
[1735814072367,0.4201,3476.9,3476.6,3.2078]
[1735814072572,0.288,3476.5,3476.3,0.0008]
[1735814072761,0.7492,3476.4,3476.3,0.0008]
[1735814072963,0.4612,3476.4,3476.3,0.0008]
[1735814073371,0.4612,3476.4,3476.3,0.28881]
[1735814075970,0.70807,3476.9,3476.6,0.28798]
[1735814076163,0.4501,3476.8,3476.3,0.0008]
[1735814076372,0.4501,3476.8,3476.7,0.28798]
[1735814076671,0.4501,3476.8,3476.6,0.28798]
[1735814077366,0.4501,3476.8,3476.7,0.28798]
[1735814082270,0.4501,3476.8,3476.4,3.2078]
[1735814082469,0.28798,3476.7,3476.4,3.4958]
[1735814082666,0.4501,3476.8,3476.4,3.2078]
[1735814082870,0.94533406,3476.8,3476.4,3.2078]
[1735814083076,0.4501,3476.8,3476.4,3.2078]
[1735814083471,0.4501,3476.8,3476.6,0.28799]
[1735814083669,0.73807,3476.8,3476.5,0.28799]
[1735814083975,0.4501,3476.8,3476.6,0.28798]
[1735814084670,0.73808,3476.8,3476.5,0.28799]
[1735814084868,0.4501,3476.8,3476.6,0.28798]
[1735814085174,0.4501,3476.8,3476.4,3.2078]
[1735814085366,0.288,3476.5,3476.3,0.0008]
[1735814086272,0.288,3476.4,3476.3,0.0008]
[1735814086470,0.288,3476.5,3476.3,0.0008]
[1735814086671,3.38302277,3476.4,3476.3,0.0008]
[1735814086871,3.87825683,3476.4,3476.3,0.0008]
[1735814087174,4.16625683,3476.4,3476.3,0.0008]
[1735814087477,0.78323406,3476.4,3476.3,0.0008]
[1735814088776,0.49523406,3476.4,3476.3,0.0008]
[1735814089165,0.78323406,3476.5,3476.3,0.0008]
[1735814089873,0.49523406,3476.5,3476.4,0.288]
[1735814090071,3.88820861,3476.5,3476.4,0.288]
[1735814090578,3.39297455,3476.5,3476.4,0.288]
[1735814090974,3.39297455,3476.7,3476.6,0.28799]
[1735814091472,3.88932498,3476.7,3476.6,0.28799]
[1735814091976,3.39297455,3476.7,3476.6,0.28799]
[1735814092378,3.81307455,3476.9,3476.8,0.28797]
[1735814092678,4.30939219,3476.9,3476.8,0.28797]
[1735814094772,3.88929219,3476.9,3476.8,0.28797]
[1735814096377,0.49631764,3476.9,3476.8,0.28797]
[1735814097280,6.13539128,3476.9,3476.8,0.28797]
[1735814097779,6.13539128,3476.9,3476.7,0.28797]
[1735814097980,0.49631764,3476.8,3476.7,0.28797]
[1735814098674,6.13539128,3476.8,3476.7,0.28797]
[1735814101380,6.13539128,3476.8,3476.4,3.2078]
[1735814101681,0.28798,3476.7,3476.5,0.28799]
[1735814101875,0.4608,3476.6,3476.5,0.28799]
[1735814102981,0.95711764,3476.6,3476.5,0.28799]
[1735814103979,0.95711764,3476.6,3476.4,3.4958]
[1735814104284,0.4543,3476.5,3476.4,3.4958]
[1735814105081,3.39706529,3476.7,3476.6,0.28798]
[1735814105480,3.89352592,3476.7,3476.6,0.28798]
[1735814105683,3.89352592,3476.7,3476.5,0.28799]
[1735814105981,0.49646063,3476.6,3476.5,0.28799]
[1735814106583,3.89352592,3476.6,3476.5,0.28799]
[1735814106789,3.39706529,3476.6,3476.5,0.28799]
[1735814108089,0.4281,3476.8,3476.4,9.70603872]
[1735814108386,3.39706529,3476.9,3476.8,0.28795]
[1735814108585,3.39706529,3476.9,3476.8,3.49575]
[1735814109390,0.4416,3477.0,3476.9,0.28795]
[1735814109776,3.39706529,3477.2,3476.8,3.2078]
[1735814109993,3.39706529,3477.2,3477.1,0.28793]
[1735814110785,3.39706529,3477.3,3477.2,0.28792]
[1735814110981,3.39706529,3477.3,3477.2,3.49572]
[1735814111781,0.49582596,3477.3,3477.2,3.49572]
[1735814111987,0.01015,3477.4,3477.3,0.28791]
[1735814116492,0.29806,3477.4,3477.2,3.2078]
[1735814116691,0.28792,3477.3,3476.9,0.28795]
[1735814116995,0.28793,3477.1,3476.8,0.28795]
[1735814117190,1.16222,3477.2,3476.9,0.28794]
[1735814117393,0.8743,3477.2,3477.0,0.28793]
[1735814117993,0.8743,3477.2,3477.1,0.28793]
[1735814118193,1.37012596,3477.2,3476.5,1.88295]
[1735814118594,1.65804596,3477.2,3476.9,0.28794]
[1735814118791,1.37012596,3477.2,3476.9,0.28794]
[1735814118997,3.39706529,3476.6,3476.5,1.45098]
[1735814119296,3.39626529,3476.6,3476.5,1.45098]
[1735814121198,3.39626529,3476.6,3476.5,42.25098]
[1735814121701,4.52942038,3477.1,3477.0,0.28794]
[1735814122794,6.51337364,3477.2,3477.1,0.28793]
[1735814126304,0.8743,3477.2,3476.9,3.2078]
[1735814126602,0.28795,3476.9,3476.7,4.45851066]
[1735814126801,0.28795,3476.8,3476.7,1.67721066]
[1735814127003,0.28797,3476.6,3476.5,6.69230873]
[1735814127501,2.32769806,3476.6,3476.5,4.60610873]
[1735814127694,0.28799,3476.4,3476.3,6.43704194]
[1735814127899,0.28799,3476.4,3475.6,3.2078]
[1735814127900,0.28804,3475.8,3475.7,6.66517357]
[1735814128110,5.53556806,3475.8,3475.7,6.66517357]
[1735814128295,11.03145057,3475.8,3475.7,6.66347357]
[1735814128999,6.03145057,3475.8,3475.7,6.66347357]
[1735814129392,5.74341057,3475.8,3474.5,3.6482]
[1735814129600,0.28808,3475.3,3475.0,0.2881]
[1735814129804,0.28808,3475.3,3475.1,0.28809]
[1735814130200,3.2078,3475.4,3474.5,3.6482]
[1735814130400,3.2078,3475.4,3475.2,0.28808]
[1735814130600,5.46736598,3475.4,3475.2,0.28808]
[1735814130903,5.46736598,3475.4,3475.3,0.28808]
[1735814131301,2.25956598,3475.4,3475.3,0.28808]
[1735814131501,2.25956598,3475.7,3475.3,3.2078]
[1735814131708,2.25956598,3475.7,3475.6,0.28805]
[1735814131908,2.25956598,3475.7,3475.5,0.28806]
[1735814132503,0.28806,3475.6,3475.4,0.4308]
[1735814132803,0.28804,3475.8,3475.4,0.4308]
[1735814133005,2.03972806,3476.1,3475.5,0.28806]
[1735814133209,0.28806,3475.6,3475.4,0.4308]
[1735814133405,0.28806,3475.6,3475.4,0.71887]
[1735814133807,0.28806,3475.6,3475.4,0.4308]
[1735814134005,0.28806,3475.5,3475.4,0.4308]
[1735814134311,2.03972806,3475.8,3475.3,0.28808]
[1735814134312,0.28806,3475.6,3475.3,0.28808]
[1735814134504,3.2078,3475.7,3475.4,0.0008]
[1735814134905,0.28806,3475.5,3475.4,0.0008]
[1735814136212,2.32778806,3475.5,3475.4,0.0008]
[1735814137703,7.32778806,3475.5,3475.4,0.0008]
[1735814138511,0.28814,3474.6,3474.5,3.2078]
[1735814138809,2.03972806,3474.9,3474.3,0.28815]
[1735814139008,0.28815,3474.5,3474.3,0.28815]
[1735814139306,0.28813,3474.7,3474.4,0.28815]
[1735814139513,3.2078,3475.0,3474.1,3.6543]
[1735814139704,0.28812,3474.8,3474.6,0.28813]
[1735814139909,0.28813,3474.7,3474.1,3.6543]
[1735814140111,0.28813,3474.7,3474.4,0.28815]
[1735814140409,0.28814,3474.6,3474.3,0.28816]
[1735814140710,2.03972806,3474.9,3474.2,0.28817]
[1735814140905,0.28815,3474.5,3474.2,0.28817]
[1735814141112,0.28815,3474.5,3474.1,3.6543]
[1735814141610,2.03972806,3474.9,3474.3,0.28816]
[1735814141811,2.03972806,3474.9,3474.1,3.6543]
[1735814142011,0.28817,3474.3,3474.1,3.94248]
[1735814142213,2.03972806,3474.9,3474.1,3.6543]
[1735814142214,0.28817,3474.2,3474.1,3.6543]
[1735814143408,2.03972806,3474.6,3474.1,3.6543]
[1735814143714,0.28817,3474.3,3474.1,3.6543]
[1735814143908,0.28817,3474.2,3474.1,3.6543]
[1735814144108,0.28817,3474.2,3474.1,0.4465]
[1735814144304,2.03972806,3474.3,3473.9,0.4314]
[1735814144613,2.03972806,3474.0,3473.6,0.4258]
[1735814144813,0.28821,3473.8,3473.6,0.4258]
[1735814145013,0.2882,3473.9,3473.6,0.71402]
[1735814145316,3.49598,3474.1,3473.8,0.2882]
[1735814146012,3.2078,3474.1,3473.6,0.4258]
[1735814146213,0.28815,3474.4,3473.9,0.28819]
[1735814146411,0.28817,3474.3,3473.7,3.2078]
[1735814146621,5.24752806,3474.9,3474.2,0.28817]
[1735814146808,5.24752806,3474.9,3474.1,3.2078]
[1735814146809,5.24752806,3474.9,3474.3,0.8863]
[1735814147016,2.03972806,3475.2,3474.5,3.2078]
[1735814147221,0.28812,3474.8,3474.6,0.28813]
[1735814147614,0.28808,3475.3,3475.2,0.28808]
[1735814147817,0.28808,3475.4,3475.2,0.28808]
[1735814148312,0.28808,3475.4,3475.3,0.4382]
[1735814149423,0.28808,3475.4,3474.7,3.2078]
[1735814149424,8.2078,3475.4,3474.7,3.2078]
[1735814149616,8.2078,3475.4,3474.3,0.4605]
[1735814149617,0.28815,3474.4,3474.3,0.4605]
[1735814149817,2.03972806,3474.8,3474.3,0.74866]
[1735814150124,0.28815,3474.5,3474.3,0.74866]
[1735814150321,0.28815,3474.4,3474.3,0.74866]
[1735814151319,2.03972806,3474.8,3474.3,0.4605]
[1735814151518,0.28815,3474.5,3474.3,0.74866]
[1735814151718,0.28815,3474.5,3474.4,0.28815]
[1735814152318,0.28815,3474.4,3474.3,0.74866]
[1735814152515,2.03972806,3474.8,3474.3,0.4605]
[1735814152720,0.28814,3474.6,3474.4,0.28815]
[1735814153123,0.28815,3474.4,3474.3,0.74866]
[1735814153323,2.03972806,3474.8,3474.3,0.4605]
[1735814153818,0.28814,3474.6,3474.4,0.28815]
[1735814154218,0.28814,3474.6,3474.5,0.4255]
[1735814156121,0.28814,3474.6,3474.5,0.71365]
[1735814156316,3.2078,3474.9,3474.5,0.4255]
[1735814156522,3.2078,3475.3,3474.5,3.6333]
[1735814156824,0.28808,3475.4,3475.2,0.28808]
[1735814157024,0.28808,3475.4,3475.3,0.9092]
[1735814157328,0.28808,3475.4,3475.3,1.3573]
[1735814157819,3.49588,3475.4,3475.3,1.3573]
[1735814158024,3.49588,3475.4,3475.3,0.9092]
[1735814158618,3.97530036,3475.4,3475.3,0.9092]
[1735814158813,3.49588,3475.4,3475.3,0.9092]
[1735814159320,3.49588,3475.4,3475.3,0.4496]
[1735814159518,3.49588,3475.4,3474.9,3.2078]
[1735814159519,3.2078,3475.4,3475.0,0.4321]
[1735814159728,2.03972806,3475.2,3474.9,3.2078]
[1735814159930,2.03972806,3475.2,3474.6,0.8671]
[1735814160326,0.28813,3474.7,3474.6,0.8671]
[1735814160824,0.28813,3474.7,3474.1,3.2078]
[1735814160825,0.28817,3474.2,3474.1,3.2078]
[1735814161028,2.32789806,3474.2,3474.1,3.2078]
[1735814161226,2.03972806,3474.2,3473.7,0.435]
[1735814161528,0.28823,3473.5,3473.4,3.2078]
[1735814161924,0.28823,3473.5,3473.1,0.8661]
[1735814161925,2.03972806,3473.5,3473.1,0.8661]
[1735814162125,0.28825,3473.2,3473.1,0.4321]
[1735814163925,0.28825,3473.3,3473.1,0.4321]
[1735814164127,0.4798868,3473.5,3473.4,0.28824]
[1735814164625,0.28823,3473.5,3473.4,0.0008]
[1735814164825,3.2078,3473.6,3473.4,0.0008]
[1735814165027,2.5407948,3474.0,3473.5,0.28823]
[1735814165227,0.2882,3473.9,3473.7,0.28821]
[1735814165430,0.2882,3473.9,3473.8,0.4196]
[1735814165637,0.2882,3473.9,3473.8,0.8511]
[1735814170034,0.2882,3473.9,3473.8,0.4315]
[1735814170437,0.28823,3473.5,3473.4,0.0008]
[1735814171034,0.82110245,3473.5,3473.4,0.0008]
[1735814175941,3.07685746,3473.5,3473.4,0.0008]
[1735814177140,3.07491402,3473.5,3473.4,0.0008]
[1735814177943,0.28823,3473.5,3473.4,0.0008]
[1735814178842,3.49603,3473.5,3473.4,0.0008]
[1735814179036,4.02684375,3473.5,3473.4,0.0008]
[1735814180948,6.28259876,3473.5,3473.4,0.0008]
[1735814181935,11.28259876,3473.5,3473.4,0.0008]
[1735814182439,12.41159725,3473.5,3473.4,0.0008]
[1735814182637,0.28829,3472.7,3472.6,0.8549]
[1735814183148,0.28829,3472.7,3472.4,3.2078]
[1735814183336,0.28834,3472.1,3472.0,3.2078]
[1735814183740,0.28834,3472.1,3472.0,3.49615]
[1735814183947,0.28834,3472.2,3472.1,0.28834]
[1735814184244,0.28833,3472.3,3472.1,0.28834]
[1735814184443,3.15974552,3472.9,3472.0,3.2078]
[1735814184638,0.28833,3472.3,3472.2,0.28833]
[1735814184836,3.15974552,3472.9,3472.0,3.2078]
[1735814184837,0.28834,3472.2,3472.0,3.49615]
[1735814185038,0.28834,3472.1,3472.0,3.49615]
[1735814185945,2.25705333,3472.8,3472.0,3.2078]
[1735814186244,0.28834,3472.2,3472.1,0.28834]
[1735814186543,2.25705333,3472.8,3472.4,0.28832]
[1735814186742,2.54534333,3472.8,3472.7,0.28829]
[1735814187044,0.2883,3472.7,3472.6,0.2883]
[1735814187239,2.25705333,3472.8,3472.7,0.28829]
[1735814187634,4.51913196,3472.9,3472.5,0.8633]
[1735814187839,4.51913196,3472.9,3472.8,0.28829]
[1735814188437,4.51913196,3472.9,3472.5,0.8633]
[1735814188438,5.05135481,3472.9,3472.5,0.8633]
[1735814188634,6.77437331,3472.9,3472.5,0.8633]
[1735814188837,2.54352135,3472.9,3472.5,0.8633]